fUST/lending_fUST_20250808
["ID","MTS","AMOUNT","RATE_DAILY","PERIOD"]
[377988458,1754651447268,-370000.0,0.00024524,2]
[377988459,1754651447284,-1982.50912136,0.00024559,2]
[377988460,1754651447294,-2264.10087164,0.00024565,2]
[377988461,1754651447303,-500.0,0.00024573,2]
[377988462,1754651447314,-2347.87260389,0.0002462,2]
[377988463,1754651447323,-245.57101035,0.00024624,2]
[377988464,1754651447333,-460.0,0.00024624,2]
[377988465,1754651447343,-460.0,0.00024624,2]
[377988466,1754651447353,-460.0,0.00024624,2]
[377988467,1754651447363,-528.02175843,0.00024624,2]
[377988468,1754651447372,-713.32,0.00024624,2]
[377988469,1754651447381,-460.0,0.00024624,2]
[377988470,1754651447391,-460.0,0.00024624,2]
[377988471,1754651447400,-451.26901687,0.00024624,2]
[377991278,1754651479212,727.18317324,0.000199,2]
[377991288,1754651479316,727.18317308,0.00021655,2]
[377991299,1754651479407,727.18317308,0.00023409,2]
[377991550,1754651663356,799.86147187,0.000199,2]
[377991551,1754651663449,799.86147184,0.00021655,2]
[377991552,1754651663552,799.86147184,0.00023409,2]
[377991567,1754652188940,3105.2954499,0.00023522,2]
[377991576,1754652350715,557.8988534,0.00023522,2]
[377991582,1754652428093,-693.71000296,0.00024409,2]
[377991583,1754652428114,-160.0,0.00024509,2]
[377991584,1754652428134,-460.0,0.00024509,2]
[377991585,1754652428155,-460.0,0.00024509,2]
[377991586,1754652428175,-2183.31810187,0.00024509,2]
[377991587,1754652428195,-300.0,0.00024518,2]
[377991588,1754652428216,-500.0,0.00024519,2]
[377991589,1754652428236,-398.78486814,0.00024519,2]
[377991590,1754652428256,-395.27763195,0.00024519,2]
[377991591,1754652428276,-500.0,0.00024519,2]
[377991592,1754652428296,-500.0,0.00024519,2]
[377991593,1754652428322,-500.0,0.00024519,2]
[377991594,1754652428345,-500.0,0.00024519,2]
[377991595,1754652428365,-260.0,0.00024519,2]
[377991596,1754652428387,-500.0,0.00024519,2]
[377991597,1754652428407,-538.81150631,0.00024519,2]
[377991598,1754652428427,-500.0,0.00024519,2]
[377991599,1754652428447,-500.0,0.00024519,2]
[377991600,1754652428468,-518.37193427,0.00024519,2]
[377991601,1754652428489,-500.0,0.00024519,2]
[377991602,1754652428510,-500.0,0.00024519,2]
[377991603,1754652428531,-500.0,0.00024519,2]
[377991604,1754652428554,-500.0,0.00024519,2]
[377991605,1754652428575,-500.0,0.00024519,2]
[377991606,1754652428601,-256.28268324,0.00024519,2]
[377991607,1754652428622,-500.0,0.00024519,2]
[377991608,1754652428646,-248.31644206,0.00024519,2]
[377991609,1754652428666,-500.0,0.00024519,2]
[377991610,1754652428688,-500.0,0.00024519,2]
[377991611,1754652428709,-500.0,0.00024519,2]
[377991612,1754652428731,-500.0,0.00024519,2]
[377991613,1754652428753,-500.0,0.00024519,2]
[377991614,1754652428774,-500.0,0.00024519,2]
[377991615,1754652428795,-986.0,0.00024519,2]
[377991616,1754652428815,-460.0,0.00024522,2]
[377991617,1754652428835,-460.0,0.00024522,2]
[377991618,1754652428858,-479.95,0.00024522,2]
[377991619,1754652428879,-460.0,0.00024522,2]
[377991620,1754652428901,-307.51503,0.00024522,2]
[377991621,1754652428923,-1578.07,0.00024522,2]
[377991622,1754652428944,-460.0,0.00024522,2]
[377991623,1754652428964,-460.0,0.00024522,2]
[377991624,1754652428985,-1610.23,0.00024522,2]
[377991625,1754652429006,-460.0,0.00024522,2]
[377991626,1754652429178,-460.0,0.00024523,2]
[377991627,1754652429200,-460.0,0.00024523,2]
[377991628,1754652429221,-460.0,0.00024523,2]
[377991629,1754652429241,-460.0,0.00024523,2]
[377991630,1754652429261,-460.0,0.00024523,2]
[377991631,1754652429283,-460.0,0.00024523,2]
[377991632,1754652429303,-460.0,0.00024523,2]
[377991633,1754652429323,-460.0,0.00024523,2]
[377991634,1754652429342,-527.82,0.00024523,2]
[377991635,1754652429361,-683.59,0.00024523,2]
[377991636,1754652429381,-460.0,0.00024523,2]
[377991637,1754652429401,-468.73098313,0.00024523,2]
[377991638,1754652429421,-460.0,0.00024523,2]
[377991639,1754652429440,-460.0,0.00024523,2]
[377991640,1754652429460,-460.0,0.00024523,2]
[377991641,1754652429480,-460.0,0.00024523,2]
[377991642,1754652429500,-460.0,0.00024523,2]
[377991643,1754652429520,-254.78031582,0.00024524,2]
[377991644,1754652429540,-460.0,0.00024524,2]
[377991645,1754652429563,-460.0,0.00024524,2]
[377991646,1754652429583,-460.0,0.00024524,2]
[377991647,1754652429606,-460.0,0.00024524,2]
[377991648,1754652429627,-460.0,0.00024524,2]
[377991649,1754652429647,-460.0,0.00024524,2]
[377991650,1754652429667,-460.0,0.00024524,2]
[377991651,1754652429687,-460.0,0.00024524,2]
[377991652,1754652429707,-500.0,0.00024524,2]
[377991653,1754652429728,-518.31215799,0.00024524,2]
[377991654,1754652429747,-460.0,0.00024524,2]
[377991655,1754652429767,-199.41711371,0.00024524,7]
[377991656,1754652429787,-460.0,0.00024524,2]
[377991657,1754652429807,-303.81061069,0.00024524,2]
[377991658,1754652429828,-460.0,0.00024524,2]
[377991659,1754652429848,-460.0,0.00024524,2]
[377991660,1754652429868,-397.18018548,0.00024524,2]
[377991661,1754652429889,-460.0,0.00024524,2]
[377991662,1754652429909,-460.0,0.00024524,2]
[377991663,1754652429931,-460.0,0.00024524,2]
[377991664,1754652429953,-460.0,0.00024524,2]
[377991665,1754652429975,-919.16,0.00024524,2]
[377991666,1754652429997,-1921.68,0.00024524,2]
[377991667,1754652430019,-460.0,0.00024524,2]
[377991668,1754652430042,-1108.13,0.00024524,2]
[377991669,1754652430062,-2264.10087164,0.00024564,2]
[377991670,1754652430083,-2347.87260389,0.00024619,2]
[377991671,1754652430103,-325.0,0.00024624,3]
[377991672,1754652430123,-325.0,0.00024624,3]
[377991673,1754652430143,-325.0,0.00024624,3]
[377991674,1754652430164,-637.73,0.00024666,2]
[377991675,1754652430184,-151.0,0.00024671,2]
[377991676,1754652430203,-151.0,0.00024671,2]
[377991677,1754652430223,-151.0,0.00024671,2]
[377991678,1754652430243,-279.76125369,0.00024671,2]
[377991679,1754652430264,-288.97649101,0.00024674,2]
[377991680,1754652430284,-661.76300113,0.00024724,2]
[377991681,1754652430304,-2644.40495252,0.00024724,2]
[377991682,1754652430326,-460.0,0.00024783,2]
[377991683,1754652430348,-460.0,0.00024783,2]
[377991684,1754652430369,-460.0,0.00024796,2]
[377991685,1754652430389,-460.0,0.00024796,2]
[377991686,1754652430414,-479.95,0.00024796,2]
[377991687,1754652430435,-460.0,0.00024796,2]
[377991688,1754652430457,-1578.07,0.00024796,2]
[377991689,1754652430478,-460.0,0.00024796,2]
[377991690,1754652430500,-460.0,0.00024796,2]
[377991691,1754652430522,-1610.23,0.00024796,2]
[377991692,1754652430543,-460.0,0.00024797,2]
[377991693,1754652430569,-460.0,0.00024797,2]
[377991694,1754652430592,-460.0,0.00024797,2]
[377991695,1754652430613,-204.43,0.00024797,2]
[377991696,1754652430635,-511.44857748,0.00024797,2]
[377991697,1754652430656,-460.0,0.00024797,2]
[377991698,1754652430677,-460.0,0.00024797,2]
[377991699,1754652430699,-460.0,0.00024797,2]
[377991700,1754652430721,-683.59,0.00024797,2]
[377991701,1754652430742,-460.0,0.00024797,2]
[377991702,1754652430762,-460.0,0.00024797,2]
[377991703,1754652430784,-460.0,0.00024797,2]
[377991704,1754652430805,-460.0,0.00024797,2]
[377991705,1754652430826,-460.0,0.00024797,2]
[377991706,1754652430847,-172.66985488,0.00024798,2]
[377991707,1754652430869,-460.0,0.00024798,2]
[377991708,1754652430889,-460.0,0.00024798,2]
[377991709,1754652430911,-460.0,0.00024798,2]
[377991710,1754652430930,-470.35407382,0.00024798,2]
[377991711,1754652430951,-460.0,0.00024798,2]
[377991712,1754652430972,-460.0,0.00024798,2]
[377991713,1754652430992,-460.0,0.00024798,2]
[377991714,1754652431013,-562.06501111,0.00024798,2]
[377991715,1754652431033,-460.0,0.00024798,2]
[377991716,1754652431054,-460.0,0.00024798,2]
[377991717,1754652431073,-460.0,0.00024798,2]
[377991718,1754652431094,-460.0,0.00024798,2]
[377991719,1754652431115,-460.0,0.00024798,2]
[377991720,1754652431138,-919.16,0.00024798,2]
[377991721,1754652431161,-1921.68,0.00024798,2]
[377991722,1754652431181,-460.0,0.00024798,2]
[377991723,1754652431204,-1108.13,0.00024798,2]
[377991724,1754652431223,-3838.29378192,0.0002484,2]
[377991725,1754652431242,-151.0,0.00024855,2]
[377991726,1754652431262,-151.0,0.00024855,2]
[377991727,1754652431282,-151.0,0.00024855,2]
[377991728,1754652431303,-151.0,0.00024855,2]
[377991729,1754652431322,-151.0,0.00024855,2]
[377991730,1754652431342,-151.0,0.00024855,2]
[377991731,1754652431361,-151.0,0.00024855,2]
[377991732,1754652431380,-151.0,0.00024855,2]
[377991733,1754652431400,-151.0,0.00024855,2]
[377991734,1754652431420,-102.14518183,0.00024855,2]
[377991736,1754652494112,719.88000017,0.000199,2]
[377991737,1754652494195,719.87999994,0.00021655,2]
[377991738,1754652494298,719.87999994,0.00023409,2]
[377991799,1754652632451,-185.5979594,0.00024422,2]
[377991801,1754652632462,-460.0,0.00024509,2]
[377991803,1754652632472,-460.0,0.00024509,2]
[377991805,1754652632484,-637.6,0.00024522,2]
[377991807,1754652632494,-460.0,0.00024522,2]
[377991809,1754652632505,-1446.56,0.00024522,2]
[377991812,1754652632515,-460.0,0.00024523,2]
[377991814,1754652632526,-236.33088738,0.00024523,2]
[377991816,1754652632539,-112.72911262,0.00024523,2]
[377991818,1754652632550,-300.0,0.00024523,2]
[377991820,1754652632561,-460.0,0.00024524,2]
[377991822,1754652632571,-842.56,0.00024524,2]
[377991825,1754652632582,-460.0,0.00024524,2]
[377991827,1754652632592,-1298.17,0.00024524,2]
[377991829,1754652632603,-460.0,0.00024524,2]
[377991831,1754652632615,-1015.79,0.00024524,2]
[377991833,1754652632627,-460.0,0.00024783,2]
[377991835,1754652632638,-460.0,0.00024783,2]
[377991839,1754652632652,-637.6,0.00024796,2]
[377991841,1754652632663,-464.45,0.00024796,2]
[377991843,1754652632674,-1446.56,0.00024796,2]
[377991845,1754652632684,-460.0,0.00024797,2]
[377991847,1754652632695,-500.0,0.00024797,2]
[377991849,1754652632706,-168.7079927,0.00024797,2]
[377991852,1754652632716,-249.81293801,0.00024797,2]
[377991854,1754652632727,-250.69807592,0.00024797,2]
[377991856,1754652632737,-460.0,0.00024798,2]
[377991858,1754652632748,-842.56,0.00024798,2]
[377991860,1754652632760,-373.18711016,0.00024798,2]
[377991863,1754652632773,-86.81288984,0.00024798,2]
[377991865,1754652632784,-376.85087814,0.00024798,2]
[377991867,1754652632797,-699.79020707,0.00024798,2]
[377992326,1754652639601,-460.0,0.00024522,2]
[377992327,1754652639611,-460.0,0.00024796,2]
[377992328,1754652639624,-221.52891479,0.00024798,2]
[377992329,1754652639634,-500.0,0.00024873,2]
[377992330,1754652639643,-611.16,0.00024897,2]
[377992331,1754652639654,-151.0,0.00024898,7]
[377992332,1754652639666,-151.0,0.00024898,7]
[377992333,1754652639675,-218.26217856,0.000249,2]
[377992334,1754652639685,-151.0,0.000249,7]
[377992335,1754652639696,-151.0,0.000249,7]
[377992336,1754652639707,-151.0,0.000249,7]
[377992337,1754652639716,-1189.50547284,0.000249,2]
[377992338,1754652639726,-151.0,0.00024956,7]
[377992339,1754652639735,-13020.07820269,0.00024975,2]
[377992340,1754652639744,-151.0,0.00024975,2]
[377992341,1754652639753,-151.0,0.00024975,2]
[377992342,1754652639763,-151.0,0.00024975,2]
[377992343,1754652639772,-151.0,0.00024975,2]
[377992344,1754652639782,-151.0,0.00024975,2]
[377992345,1754652639791,-151.0,0.00024975,2]
[377992346,1754652639801,-151.0,0.00024975,2]
[377992347,1754652639810,-151.0,0.00024975,2]
[377992348,1754652639819,-151.0,0.00024975,2]
[377992349,1754652639828,-151.0,0.00024975,2]
[377992350,1754652639838,-151.0,0.00024975,2]
[377992351,1754652639847,-151.0,0.00024975,2]
[377992352,1754652639857,-500.0,0.00024989,2]
[377992353,1754652639867,-500.0,0.00024989,2]
[377992354,1754652639876,-500.0,0.00024989,2]
[377992355,1754652639887,-500.0,0.00024989,2]
[377992356,1754652639897,-393.40429283,0.00024989,2]
[377992357,1754652639907,-500.0,0.00024989,2]
[377992358,1754652639917,-233880.93995427,0.0002499,2]
[377992359,1754652639929,-2505.57620073,0.0002499,2]
[377992360,1754652639938,-176.89,0.0002499,3]
[377992361,1754652639947,-291.7039758,0.0002499,3]
[377992362,1754652639959,-239.0060242,0.0002499,3]
[377992363,1754652639969,-5055.00338318,0.00025,7]
[377992364,1754652639980,-500.0,0.00025,7]
[377992411,1754652646494,-640.56,0.00024523,2]
[377992412,1754652646505,-336.315,0.00024797,2]
[377992417,1754652700451,472.15507686,0.000199,2]
[377992418,1754652700534,472.1550766,0.00021655,2]
[377992419,1754652700622,472.1550766,0.00023409,2]
[377992430,1754653508804,500.0,0.00024,2]
[377992447,1754653645185,-300.0,0.00024521,2]
[377992448,1754653645206,-491.0079628,0.00024522,2]
[377992449,1754653645226,-460.0,0.00024522,2]
[377992450,1754653645247,-500.0,0.00024522,2]
[377992451,1754653645268,-500.0,0.00024522,2]
[377992452,1754653645289,-235.38523738,0.00024522,2]
[377992453,1754653645313,-460.0,0.00024522,2]
[377992454,1754653645335,-181.71752625,0.00024522,2]
[377992455,1754653645359,-1720.83,0.00024522,2]
[377992456,1754653645381,-772.35,0.00024522,2]
[377992457,1754653645402,-460.0,0.00024522,2]
[377992458,1754653645422,-283.57,0.00024522,2]
[377992459,1754653645443,-1353.03,0.00024522,2]
[377992460,1754653645463,-460.0,0.00024522,2]
[377992461,1754653645484,-460.0,0.00024523,2]
[377992462,1754653645504,-460.0,0.00024523,2]
[377992463,1754653645524,-460.0,0.00024523,2]
[377992464,1754653645543,-460.0,0.00024523,2]
[377992465,1754653645564,-973.46,0.00024523,2]
[377992466,1754653645584,-460.0,0.00024523,2]
[377992467,1754653645604,-1189.99,0.00024523,2]
[377992468,1754653645625,-460.0,0.00024523,2]
[377992469,1754653645644,-460.0,0.00024523,2]
[377992470,1754653645664,-584.46,0.00024523,2]
[377992471,1754653645684,-460.0,0.00024523,2]
[377992472,1754653645704,-78.56951,0.00024523,2]
[377992479,1754653832633,-460.0,0.00024522,2]
[377992480,1754653832643,-487.05,0.00024522,2]
[377992481,1754653832653,-740.17,0.00024522,2]
[377992482,1754653832662,-244.04576915,0.00024522,2]
[377992485,1754653832687,-300.0,0.00024522,2]
[377992489,1754653832699,-388.85423085,0.00024522,2]
[377992491,1754653832709,-507.13049,0.00024523,2]
[377992493,1754653832719,-1326.02,0.00024523,2]
[377992495,1754653832728,-460.0,0.00024523,2]
[377992497,1754653832737,-460.0,0.00024523,2]
[377992499,1754653832747,-300.0,0.00024794,2]
[377992501,1754653832757,-460.0,0.00024795,2]
[377992503,1754653832766,-460.0,0.00024795,2]
[377992505,1754653832776,-460.0,0.00024795,2]
[377992507,1754653832785,-5375.43330771,0.00024796,2]
[377992509,1754653832794,-460.0,0.00024796,2]
[377992511,1754653832804,-1720.83,0.00024796,2]
[377992513,1754653832813,-460.0,0.00024796,2]
[377992515,1754653832822,-1353.03,0.00024796,2]
[377992517,1754653832831,-460.0,0.00024796,2]
[377992519,1754653832840,-460.0,0.00024796,2]
[377992521,1754653832849,-487.05,0.00024796,2]
[377992523,1754653832858,-740.17,0.00024796,2]
[377992525,1754653832867,-932.9,0.00024796,2]
[377992528,1754653832876,-460.0,0.00024797,2]
[377992530,1754653832885,-460.0,0.00024797,2]
[377992532,1754653832895,-1189.99,0.00024797,2]
[377992534,1754653832904,-432.64427764,0.00024797,2]
[377992536,1754653832913,-460.0,0.00024797,2]
[377992538,1754653832923,-460.0,0.00024797,2]
[377992540,1754653832932,-585.7,0.00024797,2]
[377992542,1754653832942,-1326.02,0.00024797,2]
[377992544,1754653832951,-460.0,0.00024797,2]
[377992546,1754653832963,-460.0,0.00024797,2]
[377992548,1754653832972,-460.0,0.00024854,2]
[377992550,1754653832981,-626.63,0.00024854,2]
[377992552,1754653832991,-460.0,0.00024854,2]
[377992554,1754653833000,-460.0,0.00024854,2]
[377992556,1754653833009,-460.0,0.00024854,2]
[377992558,1754653833019,-181.63424312,0.00024854,2]
[377992560,1754653833028,-460.0,0.00024854,2]
[377992562,1754653833037,-460.0,0.00024854,2]
[377992564,1754653833046,-460.0,0.00024854,2]
[377992566,1754653833056,-460.0,0.00024854,2]
[377992568,1754653833065,-460.0,0.00024854,2]
[377992570,1754653833075,-596.3951263,0.00024854,2]
[377992572,1754653833084,-460.0,0.00024854,2]
[377992574,1754653833095,-151.436792,0.00024874,3]
[377992576,1754653833104,-2558.86252128,0.0002489,2]
[377992578,1754653833113,-951.60437828,0.0002489,2]
[377992580,1754653833123,-8458.38173845,0.0002496,3]
[377992582,1754653833133,-500.0,0.00024973,2]
[377992584,1754653833143,-151.0,0.00024975,2]
[377992587,1754653833160,-263.85481817,0.00024975,2]
[377992589,1754653833172,-592.79,0.0002498,3]
[377992591,1754653833182,-500.0,0.00024989,2]
[377992593,1754653833191,-500.0,0.00024989,2]
[377992595,1754653833202,-500.0,0.00024989,2]
[377992597,1754653833211,-525.38300498,0.00024989,2]
[377992599,1754653833221,-269.0,0.00024989,2]
[377992601,1754653833231,-198.77852942,0.00024989,2]
[377992603,1754653833241,-190.97940624,0.0002499,2]
[377992605,1754653833251,-12334.10320102,0.0002499,2]
[377992817,1754653838642,-6369.46404315,0.0002499,2]
[377992843,1754653838883,-74487.17789837,0.0002499,2]
[377992845,1754653838895,-1025.92947994,0.0002499,2]
[377993003,1754653840626,-5468.67489712,0.0002499,2]
[377993412,1754653846733,-460.0,0.00024523,2]
[377993413,1754653846742,-184.1,0.00024523,2]
[377993414,1754653846752,-212.25,0.00024797,2]
[377993415,1754653846761,-2194.57809819,0.0002499,2]
[377993423,1754654032654,205.2765695,0.000199,2]
[377993424,1754654144535,450.0,0.00019,2]
[377993425,1754654156674,450.0,0.00019,2]
[377993426,1754654169008,450.0,0.00019,2]
[377993427,1754654204907,447.0,0.00019,2]
[377993428,1754654215287,6385.0,0.0003,120]
[377993429,1754654220083,500.0,0.00024,2]
[377993439,1754654748129,-300.0,0.00024521,2]
[377993440,1754654748152,-536.89,0.00024522,2]
[377993441,1754654748173,-460.0,0.00024522,2]
[377993442,1754654748196,-460.0,0.00024522,2]
[377993443,1754654748218,-520.84,0.00024522,2]
[377993444,1754654748238,-460.0,0.00024522,2]
[377993445,1754654748259,-460.0,0.00024522,2]
[377993446,1754654748283,-460.0,0.00024523,2]
[377993447,1754654748305,-460.0,0.00024523,2]
[377993448,1754654748326,-460.0,0.00024523,2]
[377993449,1754654748350,-1577.43,0.00024523,2]
[377993450,1754654748372,-678.48,0.00024523,2]
[377993451,1754654748394,-460.0,0.00024523,2]
[377993452,1754654748423,-536.89,0.00024796,2]
[377993453,1754654748444,-460.0,0.00024796,2]
[377993454,1754654748467,-460.0,0.00024796,2]
[377993455,1754654748488,-460.0,0.00024796,2]
[377993456,1754654748511,-460.0,0.00024796,2]
[377993457,1754654748537,-600.52,0.00024796,2]
[377993458,1754654748560,-460.0,0.00024796,2]
[377993459,1754654748580,-460.0,0.00024796,2]
[377993460,1754654748602,-460.0,0.00024796,2]
[377993461,1754654748623,-460.0,0.00024796,2]
[377993462,1754654748644,-460.0,0.00024796,2]
[377993463,1754654748666,-460.0,0.00024797,2]
[377993464,1754654748689,-1577.43,0.00024797,2]
[377993465,1754654748864,-678.48,0.00024797,2]
[377993466,1754654748896,-460.0,0.00024797,2]
[377993467,1754654748918,-460.0,0.00024854,2]
[377993468,1754654748940,-460.0,0.00024889,2]
[377993469,1754654748962,-1363.29,0.00024889,2]
[377993470,1754654748983,-512.46,0.00024889,2]
[377993471,1754654749006,-519.52,0.00024889,2]
[377993472,1754654749028,-460.0,0.00024889,2]
[377993473,1754654749051,-1215.52,0.00024889,2]
[377993474,1754654749072,-761.2835026,0.0002489,2]
[377993475,1754654749092,-1705.90834752,0.000249,2]
[377993476,1754654749114,-151.0,0.00024975,2]
[377993477,1754654749136,-151.0,0.00024975,2]
[377993478,1754654749159,-151.0,0.00024975,2]
[377993479,1754654749180,-151.0,0.00024975,2]
[377993480,1754654749201,-151.0,0.00024975,2]
[377993481,1754654749222,-468.59,0.0002498,3]
[377993482,1754654749244,-855.16,0.00024988,2]
[377993483,1754654749267,-460.0,0.00024988,2]
[377993484,1754654749289,-1090.82,0.00024988,2]
[377993485,1754654749310,-460.0,0.00024989,2]
[377993486,1754654749330,-279.51989389,0.0002499,2]
[377993487,1754654749350,-190.97940624,0.0002499,2]
[377993488,1754654749371,-125588.70730875,0.0002499,2]
[377993491,1754654828071,-460.0,0.00024522,2]
[377993492,1754654828092,-678.48,0.00024523,2]
[377993493,1754654828117,-855.16,0.00024795,2]
[377993494,1754654828137,-460.0,0.00024796,2]
[377993495,1754654828159,-678.48,0.00024797,2]
[377993496,1754654828182,-536.89,0.00024988,2]
[377993497,1754654828203,-300.0,0.00024989,2]
[377993498,1754654828224,-80532.45337269,0.0002499,2]
[377993499,1754654846102,-460.0,0.00024796,2]
[377993500,1754654846124,-460.0,0.00024888,2]
[377993501,1754654846147,-13477.31209556,0.0002499,2]
[377993502,1754654846168,-552.96165096,0.0002499,2]
[377993503,1754654846189,-163.69663392,0.0002499,2]
[377993504,1754654846210,-75544.26769556,0.00025,7]
[377993505,1754654846722,-18900.72892126,0.00025,7]
[377993506,1754654846742,-151.0,0.00025,7]
[377993507,1754654846762,-842.78739015,0.00025,7]
[377993508,1754654846782,-160.0,0.00025,7]
[377993509,1754654846802,-500.0,0.00025,2]
[377993510,1754654846821,-151.0,0.00025,2]
[377993511,1754654846842,-197.63481159,0.00025,7]
[377993512,1754654853088,-460.0,0.00024795,2]
[377993513,1754654853110,-460.0,0.00024796,2]
[377993514,1754654853136,-263.81618142,0.00025,7]
[377993515,1754654853157,-160.0,0.00025,7]
[377993516,1754654853178,-190.733841,0.00025,2]
[377993517,1754654853201,-855.16,0.00025069,2]
[377993518,1754654853223,-460.0,0.00025069,2]
[377993519,1754654853246,-460.0,0.0002507,2]
[377993520,1754654853268,-460.0,0.0002507,2]
[377993521,1754654853290,-460.0,0.0002507,2]
[377993522,1754654853311,-460.0,0.0002507,2]
[377993523,1754654853333,-600.52,0.0002507,2]
[377993524,1754654853354,-460.0,0.0002507,2]
[377993525,1754654853378,-460.0,0.0002507,2]
[377993526,1754654853402,-460.0,0.0002507,2]
[377993527,1754654853424,-460.0,0.0002507,2]
[377993528,1754654853448,-460.0,0.0002507,2]
[377993529,1754654853475,-185.82,0.0002507,2]
[377993530,1754654853497,-460.0,0.0002507,2]
[377993531,1754654853519,-460.0,0.0002507,2]
[377993532,1754654853542,-1577.43,0.00025071,2]
[377993533,1754654853567,-460.0,0.00025071,2]
[377993534,1754654853589,-678.48,0.00025071,2]
[377993535,1754654853611,-151.436792,0.00025111,3]
[377993536,1754654853633,-761.28350259,0.00025143,2]
[377993537,1754654853655,-460.0,0.00025162,2]
[377993538,1754654853677,-1363.29,0.00025163,2]
[377993539,1754654853700,-519.52,0.00025163,2]
[377993540,1754654853721,-536.06,0.00025163,2]
[377993541,1754654853743,-1215.52,0.00025163,2]
[377993542,1754654853764,-151.0,0.00025214,7]
[377993543,1754654853785,-1705.90834752,0.00025234,2]
[377993544,1754654853807,-1090.82,0.00025262,2]
[377993545,1754654853828,-536.89,0.00025262,2]
[377993546,1754654853851,-151.436792,0.0002527,7]
[377993547,1754654853872,-500.0,0.00025274,2]
[377993548,1754654853894,-151.436792,0.00025288,2]
[377993549,1754654853917,-168.0,0.00025317,2]
[377993550,1754654853938,-468.59,0.00025324,3]
[377993551,1754654853962,-500.0,0.00025333,2]
[377993552,1754654853985,-500.0,0.00025333,2]
[377993553,1754654854009,-417.76810349,0.00025333,2]
[377993554,1754654854030,-100044.34164698,0.00025334,2]
[377993631,1754655031962,-1511.7,0.00024522,2]
[377993696,1754655032475,-783.9,0.00024523,2]
[377993698,1754655032485,-1045.37,0.00024523,2]
[377993700,1754655032494,-460.0,0.00024523,2]
[377993702,1754655032504,-1511.7,0.00024796,2]
[377993703,1754655032513,-300.0,0.00024796,2]
[377993705,1754655032524,-783.9,0.00024797,2]
[377993707,1754655032536,-1045.37,0.00024797,2]
[377993709,1754655032546,-281.44,0.00024797,2]
[377993711,1754655032558,-1306.49,0.00024888,2]
[377993713,1754655032567,-497.88,0.00024888,2]
[377993715,1754655032576,-460.0,0.00024889,2]
[377993716,1754655032585,-85.387564,0.00024889,2]
[377994105,1754655037660,-353.72246964,0.00024889,2]
[377994108,1754655037888,-20.88996636,0.00024889,2]
[377994110,1754655037899,-160.0,0.00025,7]
[377994111,1754655037908,-1511.7,0.0002507,2]
[377994113,1754655037918,-783.9,0.00025071,2]
[377994114,1754655037928,-1045.37,0.00025071,2]
[377994115,1754655037937,-250.0,0.00025123,2]
[377994116,1754655037946,-1306.49,0.00025162,2]
[377994117,1754655037955,-497.88,0.00025162,2]
[377994118,1754655037965,-460.0,0.00025163,2]
[377994119,1754655037974,-460.0,0.00025163,2]
[377994120,1754655037983,-460.0,0.00025344,2]
[377994121,1754655037993,-460.0,0.00025344,2]
[377994122,1754655038002,-600.52,0.00025344,2]